[Event "VIII Open Semana Santa 2024"]
[Site "San Vicente del Raspeig"]
[Date "2024.03.28"]
[Round "3.8"]
[White "Ezra Paul Chambers"]
[Black "Basso, Pier Luigi"]
[Result "0-1"]
[ECO "C48"]
[WhiteElo "2343"]
[BlackElo "2503"]
[Annotator "TA"]
[PlyCount "72"]
[EventDate "2024.03.27"]
[EventType "swiss"]
[EventCountry "ESP"]
[SourceTitle "playchess.com"]
[Source "ChessBase"]
[SourceQuality "1"]
[TimeControl "5400+30"]

{[%evp 9,72,8,15,21,22,25,37,-20,-26,-79,-19,-21,-13,-38,0,-23,64,60,48,63,80,70,283,218,224,223,225,147,180,131,141,0,0,0,0,0,0,-169,-194,-353,-364,-343,-304,-655,-233,-189,-123,-240,-242,-810,-809,-786,-787,-718,-699,-6331,-2364,-2570,-2341,-29990,-29991,-29991,-29992,-29992,-29993]} 1. e4 {[%emt 1:31:00]} e5 {[%emt 0:03:03]} 2. Nf3 {[%emt 0:00:00]} Nc6 {[%emt 0:00:18]} 3. Bb5 {[%emt 0:00:00]} Nf6 {[%emt 0:00:07]} 4. Nc3 {[%emt 0:00:00]} Nd4 {[%emt 0:00:07]} 5. Bc4 {[%emt 0:00:00]} c6 {[%emt 0:00:20]} 6. Nxe5 {[%emt 0:00:00]} d5 {[%emt 0:03:43]} 7. exd5 {[%emt 0:00:00]} Bd6 {[%emt 0:00:16]} 8. f4 {[%emt 0:00:00]} (8. Nf3 $14 Qe7+ 9. Kf1 Nxf3 (9... Bg4 10. Be2 $14) 10. Qxf3) 8... cxd5 {[%emt 0:03:45]} (8... O-O {simplifies} 9. dxc6 Qb6 10. Kf1 Nxc6 11. d4 Qxd4 12. Qxd4 Nxd4 13. Nb5 Nxb5 14. Bxb5 Be6) 9. Bd3 {[%emt 0:00:00]} (9. Bb5+ $11 Kf8 10. Bd3) 9... Bxe5 {[%emt 0:07:22]} (9... O-O $17 {aiming for ...Bxe5.} 10. O-O Re8) 10. fxe5 $11 {[%emt 0:00:00]} Bg4 {[%emt 0:00:32]} 11. Be2 {[%emt 0:00:00]} Ne4 {[%emt 0:16:31] ...Qh4+ would now be deadly.} (11... O-O $5) 12. Bb5+ {[%emt 0:00:00]} Kf8 {[%emt 0:14:52]} (12... Nxb5 $1 $11 13. Qxg4 Nbxc3 14. bxc3 Qb6) 13. Qxg4 $14 {[%emt 0:00:00]} Nxc2+ {[%emt 0:00:04] Excellent horsemanship.} 14. Ke2 {[%emt 0:00:00]} Nd4+ {[%emt 0:09:54]} 15. Kf1 {[%emt 0:00:00]} f5 $2 {[%emt 0:04:46]} (15... h5 $14 16. Qd1 (16. Qd7 Qh4 $14) 16... Nxc3 17. dxc3 Nxb5) 16. Qf4 {[%emt 0:00:00] Black must now prevent d3.} g5 {[%emt 0:00:24]} 17. Qe3 {[%emt 0:00:00]} Nc2 {[%emt 0:01:02]} 18. Qh3 {[%emt 0:00:00]} Kg7 {[%emt 0:06:40] Dodges Qh6+} 19. Rb1 {[%emt 0:00:00]} (19. d3 $1 $18 {[%cal Rd3e4]} Nxc3 20. bxc3 Nxa1 21. Qh5 (21. Qxf5 $2 Rf8 $19)) 19... Qb6 $16 {[%emt 0:08:49]} 20. Qf3 {[%emt 0:01:08] Wards off Qf2+} (20. Nxd5 $2 Qf2#) (20. Qxf5 $2 Rhf8 $19) (20. d4 $1 $16 Rhc8 21. Nxe4 (21. Qxf5 $2 Rf8 $19) 21... Qxb5+ 22. Kg1 dxe4 23. Bxg5 (23. Qxf5 $2 Rf8 $17)) 20... Nd4 $1 $36 {[%emt 0:02:36][%mdl 2048] Black has some pressure. Chess con chili.} 21. Qe3 {[%emt 0:00:16][%cal Od2d3] Hoping for d3!} f4 {[%emt 0:00:17]} 22. Qg1 {[%emt 0:04:07][%cal Od2d3]} Rhf8 {[%emt 0:00:50] And now ...f3 would win.} 23. Be2 {[%emt 0:01:46]} (23. Nxd5 $2 Qxb5+ 24. d3 Qxd3+ 25. Ke1 Qe2#) (23. d3 $1 $11 {and White has nothing to worry.} Rad8 24. dxe4 dxe4 25. a4) 23... Rae8 $19 {[%emt 0:04:57]} 24. Nxe4 $2 {[%emt 0:03:28]} (24. Nxd5 $2 Qc5 25. d3 Qxd5 $19) (24. b3 Rxe5 25. Nxe4 dxe4 26. Bb2) 24... dxe4 {[%emt 0:00:05]} 25. b3 {[%emt 0:00:19]} Qd8 $1 {[%emt 0:01:17][%cal Od4e2] Strongly threatening ...Nxe2!} (25... Rxe5 26. Bb2 e3 27. Rc1 $11) 26. Bh5 {[%emt 0:00:49]} (26. e6 Nxe2 (26... Rxe6 $2 27. Qxd4+ Qxd4 28. Bb2 $18) 27. Qc5 Nxc1 28. Rxc1 Rxe6 (28... Qxd2 29. Qxg5+ Kh8 30. Qe5+ Kg8 31. Qg5+ Kh8 32. Qe5+ Kg8 33. Qg5+ Kh8 $11) 29. Qc7+ Kg6 30. Ke1) 26... Re6 $2 {[%emt 0:04:38]} (26... Rxe5 27. Bb2 e3 28. Rd1 $11) (26... e3 27. Bb2 Nxb3) 27. Ba3 {[%emt 0:00:25] [#]} Rf5 {[%emt 0:01:08]} ({Black should try} 27... e3 $1 $19 {Threatens to win with ...Rf5.} 28. Rc1 (28. Bxf8+ Qxf8 29. Rd1 Rxe5 $15) 28... Rxe5 29. Bxf8+ Kxf8 30. dxe3 fxe3) 28. Bg4 {[%emt 0:00:28] [#]} (28. Rd1 $17 {was worth a try.} e3 29. Bb2) 28... e3 $1 {[%emt 0:00:55]} 29. dxe3 $2 {[%emt 0:00:37]} (29. Rd1 e2+ 30. Kf2 (30. Bxe2 $2 {perishes.} Nxe2 31. Qxa7 Nc3 $19) 30... exd1=B (30... exd1=N+ $2 31. Qxd1 Rfxe5 32. Bxe6 $19) 31. Qxd1) 29... fxe3+ {[%emt 0:02:23]} 30. Bxf5 {[%emt 0:00:02]} Nxf5 {[%emt 0:00:06]} 31. Bd6 {[%emt 0:00:46]} Qa5 {[%emt 0:01:20]} 32. Re1 {[%emt 0:00:40]} Qa6+ {[%emt 0:01:09]} (32... Qb5+ $142 33. Re2 g4) 33. Re2 {[%emt 0:00:03]} Re8 {[%emt 0:00:37][%cal Oe8c8] ( -> ...Rc8!)} 34. g4 {[%emt 0:00:59] [#]} Rc8 $1 {[%emt 0:00:09] Black mates.} 35. Ba3 {[%emt 0:00:33]} (35. gxf5 Rc1+) 35... Rc2 {[%emt 0:01:36][%csl Gc2][%cal Ra6e2]} 36. Qg2 {[%emt 0:00:33]} Nd4 {[%emt 0:00:48] Weighted Error Value: White=0.99/Black=0.64.  Loses game:     	White=1     	Black=1      Mistake:       	White=8     	Black=3      Inaccurate:     	White=1     	Black=1      OK:         	White=4     	Black=6      Best:        	White=5     	Black=5      Strong:       	---       	Black=2} 0-1

[Event "VIII Open Semana Santa 2024"]
[Site "San Vicente del Raspeig"]
[Date "2024.03.28"]
[Round "3.9"]
[White "Diaz Camallonga, Carles"]
[Black "Oro, Faustino"]
[Result "1/2-1/2"]
[ECO "E18"]
[WhiteElo "2491"]
[BlackElo "2330"]
[Annotator "TA"]
[PlyCount "62"]
[EventDate "2024.03.27"]
[EventType "swiss"]
[EventCountry "ESP"]
[SourceTitle "playchess.com"]
[Source "ChessBase"]
[SourceQuality "1"]
[TimeControl "5400+30"]

{[%evp 14,62,40,33,68,34,26,30,19,0,0,-25,-35,-35,0,-47,-41,-47,-36,-52,-38,-39,-45,-58,-58,-58,-56,-58,-56,-58,-45,-60,-45,-47,-42,-54,-41,-45,-33,-51,-50,-47,-16,-17,-6,-27,0,-29,0,-14,0]} 1. d4 {[%emt 0:02:53]} Nf6 {[%emt 0:00:18]} 2. Nf3 {[%emt 0:00:05]} e6 {[%emt 0:00:25]} 3. c4 {[%emt 0:00:07]} b6 {[%emt 0:01:29]} 4. g3 {[%emt 0:00:08]} Bb7 {[%emt 0:00:09]} 5. Bg2 {[%emt 0:00:06]} Be7 {[%emt 0:01:16]} 6. O-O {[%emt 0:00:07]} O-O {[%emt 0:00:05]} 7. Re1 {[%emt 0:00:03]} d6 {[%emt 0:06:49]} 8. Nc3 {[%emt 0:03:47]} Ne4 {[%emt 0:01:24]} 9. Qc2 {[%emt 0:02:53]} (9. Ng5 $5 Bxg5 (9... Nxc3 10. Qc2 $16) 10. Bxg5 (10. Bxe4 Bxe4 11. Bxg5 Qxg5 $14) (10. Nxe4 Bxc1 11. Rxc1 a5 $14) 10... Qxg5 11. Nxe4 (11. Bxe4 Bxe4 12. Nxe4 Qg4 $16) 11... Bxe4 12. Bxe4 $14) 9... f5 {[%emt 0:08:07]} 10. d5 {[%emt 0:13:41] Strongly threatening Nd4.} Nxc3 {[%emt 0:07:05] White has an edge.} 11. Qxc3 {[%emt 0:00:27]} (11. Nd4 {is more complex.} Ne4 12. Nxe6 Qc8 13. f3) 11... e5 {[%emt 0:00:55] Inhibits Nd4.} 12. h4 {[%emt 0:00:31]} Nd7 {[%emt 0:05:47]} 13. b4 {[%emt 0:15:37]} Bf6 {[%emt 0:15:56]} 14. Bg5 {[%emt 0:01:28]} (14. Bb2 $11) 14... h6 $15 {[%emt 0:03:19]} 15. Bxf6 {[%emt 0:00:09]} Nxf6 {[%emt 0:00:09]} 16. Nd2 {[%emt 0:06:26]} f4 {[%emt 0:06:01]} 17. e3 {[%emt 0:21:39]} fxg3 {[%emt 0:03:40]} 18. fxg3 {[%emt 0:00:03]} Qd7 {[%emt 0:03:28]} 19. e4 {[%emt 0:02:38]} Qg4 {[%emt 0:04:24]} 20. Rf1 {[%emt 0:01:57]} Bc8 {[%emt 0:06:01]} 21. Rf2 {[%emt 0:02:53]} a5 {[%emt 0:01:36] [#] ...axb4 would now be deadly.} 22. b5 {[%emt 0:02:02]} Qg6 {[%emt 0:01:52]} 23. Raf1 {[%emt 0:00:48]} Bg4 {[%emt 0:01:10]} 24. Qe3 {[%emt 0:03:36]} Nd7 {[%emt 0:01:46]} 25. Nf3 {[%emt 0:03:32][%cal Bd2f3,Bf3e1,Be1d3,Bd3f2][%mdl 32]} Nc5 {[%emt 0:04:22]} 26. Ne1 {[%emt 0:00:47]} Rxf2 {[%emt 0:01:43]} 27. Rxf2 {[%emt 0:00:13]} Rf8 {[%emt 0:00:31]} 28. Rxf8+ {[%emt 0:03:49]} Kxf8 {[%emt 0:00:01]} 29. Nd3 {[%emt 0:00:10]} Nd7 {[%emt 0:01:54]} 30. Nf2 {[%emt 0:00:16]} Ke7 {[%emt 0:01:48]} 31. Bf3 {[%emt 0:01:40]} Bxf3 {[%emt 0:12:30] Weighted Error Value: White=0.08 (flawless) /Black=0.10 (very precise) .  Mistake:       	White=1     	---        Inaccurate:     	White=2     	Black=3      OK:         	White=9     	Black=9      Best:        	White=1     	---} 1/2-1/2

[Event "VIII Open Semana Santa 2024"]
[Site "San Vicente del Raspeig"]
[Date "2024.03.28"]
[Round "3.10"]
[White "Dotzer, Lukas"]
[Black "Bora, Safal"]
[Result "1-0"]
[ECO "C70"]
[WhiteElo "2338"]
[BlackElo "2490"]
[Annotator "TA"]
[PlyCount "73"]
[EventDate "2024.03.27"]
[EventType "swiss"]
[EventCountry "ESP"]
[SourceTitle "playchess.com"]
[Source "ChessBase"]
[SourceQuality "1"]
[TimeControl "5400+30"]

{[%evp 16,73,73,58,58,23,41,0,6,20,18,0,3,0,0,0,18,14,27,0,0,-83,33,-52,-27,-6,75,-24,-22,-22,0,-14,0,-16,-8,-28,-12,-3,-6,-5,-4,-8,-10,-18,-13,-41,-10,-7,-7,-8,814,797,1205,1205,1167,1159,1169,1082,29962,5760]} 1. e4 {[%emt 0:00:03]} e5 {[%emt 0:02:22]} 2. Nf3 {[%emt 0:00:05]} Nc6 {[%emt 0:00:05]} 3. Bb5 {[%emt 0:00:06]} a6 {[%emt 0:00:15]} 4. Ba4 {[%emt 0:00:06]} b5 {[%emt 0:00:23]} 5. Bb3 {[%emt 0:00:08]} Na5 {[%emt 0:00:10]} 6. O-O {[%emt 0:09:24]} d6 {[%emt 0:00:19]} 7. d4 {[%emt 0:03:05]} Nxb3 {[%emt 0:00:21]} 8. axb3 {[%emt 0:00:28]} f6 {[%emt 0:00:11]} 9. c4 {[%emt 0:06:11]} b4 {[%emt 0:00:25] Repels Nc3} 10. d5 {[%emt 0:09:37]} Ne7 {[%emt 0:00:42]} 11. c5 {[%emt 0:07:22]} dxc5 {[%emt 0:07:54] The position is equal.} 12. Be3 {[%emt 0:05:41]} Ng6 {[%emt 0:00:45] Repels Nh4} 13. Qc2 {[%emt 0:01:30]} Bd6 {[%emt 0:01:24]} 14. Bxc5 {[%emt 0:05:58]} O-O {[%emt 0:01:54]} 15. Nbd2 {[%emt 0:07:21]} Bd7 {[%emt 0:08:12]} 16. Be3 {[%emt 0:05:04]} f5 {[%emt 0:12:47]} 17. exf5 {[%emt 0:06:54]} Rxf5 {[%emt 0:01:21]} 18. Ne4 {[%emt 0:02:42] [#]} (18. Rfe1 $11 {remains equal.}) 18... Nf4 {[%emt 0:03:47]} (18... Rxf3 $1 $17 19. gxf3 Qf8) 19. g3 {[%emt 0:06:15]} (19. Bxf4 $14 Rxf4 20. Nfd2) 19... Nh3+ {[%emt 0:08:45]} (19... Nxd5 $2 {is the wrong capture.} 20. Qc4 c6 21. Nh4 $18 (21. Nxd6 Rxf3 22. Rfd1 Kh8 $11)) 20. Kg2 {[%emt 0:00:14][%cal Of3d2]} Qf8 {[%emt 0:01:14]} (20... Qe8 $11 21. Nfd2 Qg6) 21. Nfg5 {[%emt 0:08:32] Really sharp! White has more active pieces.} (21. Nfd2 $16 Rh5 22. f3) 21... Nxg5 $11 {[%emt 0:02:35]} 22. Nxg5 {[%emt 0:00:13]} Qf6 {[%emt 0:01:11]} 23. Ne6 {[%emt 0:06:22]} Qg6 {[%emt 0:11:41]} 24. f3 {[%emt 0:07:24]} Bb5 {[%emt 0:05:50]} 25. Rf2 {[%emt 0:01:01][%cal Oc2e4] [#]} (25. Rfd1 {with more complications.} c6 26. g4 Rf6 27. Qxg6 Rxg6 28. h4) 25... Rxf3 $1 {[%emt 0:01:51]} 26. Qxg6 {[%emt 0:00:51][%csl Ge6][%cal Rg6g7]} (26. Kxf3 $2 {loses.} Bd3 $19) 26... Rxf2+ {[%emt 0:00:07]} 27. Kxf2 {[%emt 0:00:34]} hxg6 {[%emt 0:00:03]} 28. Rc1 {[%emt 0:00:32]} Rc8 {[%emt 0:00:51]} 29. Bb6 {[%emt 0:00:43]} c6 {[%emt 0:00:34]} 30. dxc6 {[%emt 0:00:33]} Rxc6 {[%emt 0:01:30]} (30... Bxc6 $5 31. Ke3 Be7 $15) 31. Rxc6 {[%emt 0:00:05]} Bxc6 {[%emt 0:00:02][%mdl 4096] Endgame. KBB-KBN} 32. Ke3 {[%emt 0:00:55]} Kf7 $2 {[%emt 0:06:14][%mdl 8192] This move loses the game for Black.} (32... Bd5 $11 33. Nc5 Bxc5+ 34. Bxc5 Kf7) 33. Nd8+ $18 {[%emt 0:00:07]} Kf6 {[%emt 0:03:04]} 34. Nxc6 {[%emt 0:00:05]} Kf5 {[%emt 0:00:05]} 35. h3 {[%emt 0:00:14]} e4 {[%emt 0:00:53]} 36. g4+ {[%emt 0:00:08]} Kg5 {[%emt 0:00:06]} 37. Bd8+ {[%emt 0:00:08] Weighted Error Value: White=0.25 (precise) /Black=0.49.  Loses game:     	---       	Black=1      Mistake:       	White=3     	Black=2      Inaccurate:     	White=4     	Black=2      OK:         	White=5     	Black=7      Best:        	White=3     	Black=1} 1-0

[Event "VIII Open Semana Santa 2024"]
[Site "San Vicente del Raspeig"]
[Date "2024.03.28"]
[Round "3.11"]
[White "Alshameary Puente, Ismael"]
[Black "Lamard, Guillaume"]
[Result "0-1"]
[ECO "E51"]
[WhiteElo "2336"]
[BlackElo "2483"]
[Annotator "TA"]
[PlyCount "66"]
[EventDate "2024.03.27"]
[EventType "swiss"]
[EventCountry "ESP"]
[SourceTitle "playchess.com"]
[Source "ChessBase"]
[SourceQuality "1"]
[TimeControl "5400+30"]

{[%evp 13,66,-6,-2,-16,0,0,0,-16,-8,-24,-28,-40,-31,-46,-41,-49,-37,-54,-50,-46,-52,-43,-46,-51,-59,-52,0,0,0,0,0,-23,0,-34,0,-23,0,0,0,0,0,0,0,-548,-527,-914,-951,-935,-927,-1095,-1116,-900,-907,-6016,-375]} 1. d4 {[%emt 0:02:32]} Nf6 {[%emt 0:00:05]} 2. c4 {[%emt 0:00:56]} e6 {[%emt 0:00:34]} 3. Nc3 {[%emt 0:00:31]} Bb4 {[%emt 0:00:45]} 4. e3 {[%emt 0:01:07]} O-O {[%emt 0:00:38]} 5. Bd2 {[%emt 0:01:37]} d5 {[%emt 0:00:52]} 6. Nf3 {[%emt 0:00:26]} b6 {[%emt 0:00:46]} 7. cxd5 {[%emt 0:00:42]} exd5 {[%emt 0:00:18]} 8. Bd3 {[%emt 0:00:51]} Bd6 {[%emt 0:01:12]} 9. O-O {[%emt 0:01:04]} Re8 {[%emt 0:01:20]} 10. Rc1 {[%emt 0:12:13] Die Stellung ist ausgeglichen.} c5 {[%emt 0:01:54]} 11. Nb5 {[%emt 0:03:15]} Bf8 {[%emt 0:01:05]} 12. Ne5 {[%emt 0:05:50]} Bb7 {[%emt 0:00:43]} 13. f4 {[%emt 0:00:55]} Nc6 $1 {[%emt 0:05:05]} 14. Be1 {[%emt 0:12:21]} a6 {[%emt 0:02:31]} 15. Nc3 {[%emt 0:00:27]} cxd4 {[%emt 0:01:18]} 16. Nxc6 {[%emt 0:00:09]} Bxc6 {[%emt 0:00:15]} 17. exd4 {[%emt 0:00:07]} Qd7 {[%emt 0:01:17]} 18. Qc2 {[%emt 0:16:55]} Ne4 {[%emt 0:06:44]} 19. Bf2 {[%emt 0:04:06]} Bb5 {[%emt 0:04:51]} ({Günstiger ist} 19... Bb7 $15) 20. Nxb5 $11 {[%emt 0:06:17]} axb5 {[%emt 0:00:12]} 21. Qb3 {[%emt 0:04:09]} b4 {[%emt 0:06:11]} 22. Rc2 {[%emt 0:03:59] Pariert Nd2.} Qd6 {[%emt 0:04:29]} 23. Re2 {[%emt 0:04:06]} g6 {[%emt 0:08:04]} ({Viel schwächer wäre} 23... Qxf4 $6 24. Bxe4 (24. Qxd5 Nf6 $11) (24. Bg3 Qg4 $14) 24... dxe4 (24... Rxe4 $2 25. Bg3 $18) 25. Bg3 $14) 24. f5 {[%emt 0:03:33]} Bg7 {[%emt 0:05:44] Und ...Nxf2 würde nun gewinnen.} 25. Be3 {[%emt 0:00:42]} Ra7 {[%emt 0:04:24]} 26. Kh1 {[%emt 0:02:11]} Rae7 {[%emt 0:19:20][%cal Oe4g3] ...Ng3+! wäre nun fies.} 27. Bb5 {[%emt 0:02:37]} Rc8 {[%emt 0:10:39]} 28. Bf4 $2 {[%emt 0:00:48][%mdl 8192] [#]} (28. fxg6 $11 {und Weiss muss sich keine Sorgen machen.} hxg6 29. g3 (29. Bf4 $2 Qxf4 30. Rxf4 Rc1+ $19)) 28... Qxf4 $3 $19 {[%emt 0:01:03][%mdl 512] Schwarz steht klar auf Gewinn.} 29. Rxf4 {[%emt 0:00:14]} (29. Rc2 Qb8) 29... Rc1+ {[%emt 0:00:20]} 30. Re1 {[%emt 0:00:08]} Rxe1+ {[%emt 0:01:28]} 31. Rf1 {[%emt 0:04:30] Weiss hat schwache schwarze Felder} Nd2 {[%emt 0:02:21][%cal Od2f1]} 32. Qxd5 {[%emt 0:01:56]} Nxf1 {[%emt 0:00:41][%cal Rf1g3]} 33. Qd8+ {[%emt 0:00:26] [#]} Re8 $3 {[%emt 0:00:27][%mdl 512] Gewichteter Fehlerwert: Weiß=0.83/Schwarz=0.07 (makellos) .  Verlustzug:     	Weiß=1     	---        Fehler:       	---       	Schwarz=1     Ungenau:       	Weiß=2     	Schwarz=1     OK:         	Weiß=6     	Schwarz=8     Bester:       	Weiß=2     	Schwarz=2     Stark:        	---       	Schwarz=1     Brilliant:      	---       	Schwarz=1} 0-1

[Event "VIII Open Semana Santa 2024"]
[Site "San Vicente del Raspeig"]
[Date "2024.03.28"]
[Round "3.12"]
[White "Martin Duque, Jesus"]
[Black "Zhu, Jiner"]
[Result "1-0"]
[ECO "D12"]
[WhiteElo "2332"]
[BlackElo "2467"]
[Annotator "TA"]
[PlyCount "57"]
[EventDate "2024.03.27"]
[EventType "swiss"]
[EventCountry "ESP"]
[SourceTitle "playchess.com"]
[Source "ChessBase"]
[SourceQuality "1"]
[TimeControl "5400+30"]

{[%evp 15,57,18,15,18,20,17,26,10,8,14,12,8,29,0,0,0,0,0,0,0,0,0,0,0,0,-7,10,16,34,64,475,450,583,586,688,645,657,484,29994,29995,29995,29996,29996,29997]} 1. Nf3 {[%emt 0:04:56]} d5 {[%emt 0:00:08]} 2. e3 {[%emt 0:01:11]} Nf6 {[%emt 0:00:12]} 3. d4 {[%emt 0:00:17]} Bf5 {[%emt 0:03:40]} 4. c4 {[%emt 0:00:29]} c6 {[%emt 0:00:05]} 5. Nc3 {[%emt 0:00:04]} e6 {[%emt 0:00:09]} 6. Nh4 {[%emt 0:00:18]} Be4 {[%emt 0:00:06]} 7. f3 {[%emt 0:03:53]} Bg6 {[%emt 0:00:08]} 8. Qb3 {[%emt 0:02:17]} Qc7 {[%emt 0:09:06]} 9. Nxg6 {[%emt 0:00:32]} hxg6 {[%emt 0:00:04]} 10. Bd2 {[%emt 0:01:49]} Be7 {[%emt 0:00:08]} 11. O-O-O {[%emt 0:02:16] White has an edge.} dxc4 {[%emt 0:00:09]} 12. Bxc4 {[%emt 0:00:29]} b5 {[%emt 0:00:05]} 13. Be2 {[%emt 0:08:04]} a6 {[%emt 0:00:08][%cal Oc6c5]} 14. Kb1 {[%emt 0:05:47]} c5 $1 {[%emt 0:00:09]} 15. dxc5 {[%emt 0:04:21]} Nbd7 {[%emt 0:00:15]} 16. g4 {[%emt 0:11:23]} Nxc5 {[%emt 0:00:42]} (16... Bxc5 $6 17. g5 $16) 17. Qc2 {[%emt 0:00:01]} Rc8 {[%emt 0:08:49][%cal Oc7b7]} 18. g5 {[%emt 0:07:23]} Nfd7 {[%emt 0:00:20]} 19. h4 {[%emt 0:05:20][%cal Bh2h4,Bh4h5,Bh5g6][%mdl 32]} Qb7 {[%emt 0:00:18]} 20. Rc1 {[%emt 0:05:53]} O-O {[%emt 0:16:53]} 21. h5 {[%emt 0:06:43]} b4 {[%emt 0:00:07]} 22. hxg6 $1 {[%emt 0:02:28][%cal Oh1h7] Hoping for Rh7!} bxc3 $4 {[%emt 0:00:37][%mdl 8192] A mistake that costs the game.} ({Black should play} 22... Bxg5 $1 $14 23. gxf7+ Kxf7) 23. Bxc3 $18 {[%emt 0:00:59][%cal Oh1h8]} (23. gxf7+ Kxf7 24. g6+ (24. Qxc3 $2 Ne4 $19) (24. Bxc3 Bxg5 25. Rhg1 Bf6 $17) 24... Ke8 25. Bxc3 Bf6 $11) 23... Bxg5 {[%emt 0:03:38] [#]} 24. Bxa6 $1 {[%emt 0:01:56][%mdl 512] Rh8+ would kill now. A strong pair of Bishops.} Qc7 {[%emt 0:09:14]} (24... Qb8 25. Bxc8) 25. Bxc8 {[%emt 0:12:03]} Rxc8 {[%emt 0:00:04]} 26. f4 {[%emt 0:01:15]} Bf6 {[%emt 0:01:52] [#]} (26... Bh6 $18 27. gxf7+ Kxf7) 27. Rh8+ $3 {[%emt 0:01:26][%mdl 512] White mates.} Kxh8 {[%emt 0:05:03]} 28. gxf7 {[%emt 0:00:04]} Qd8 {[%emt 0:00:29]} 29. Qg6 {[%emt 0:00:31] Weighted Error Value: White=0.21 (precise) /Black=0.58.  Loses game:     	---       	Black=1      Inaccurate:     	White=1     	---        OK:         	White=8     	Black=8      Best:        	---       	Black=1      Strong:       	White=1     	Black=1      Brilliant:      	White=1     	---} 1-0

[Event "VIII Open Semana Santa 2024"]
[Site "San Vicente del Raspeig"]
[Date "2024.03.28"]
[Round "3.13"]
[White "Sinz, Bernhard"]
[Black "Baskin, Robert"]
[Result "0-1"]
[ECO "B23"]
[WhiteElo "2330"]
[BlackElo "2461"]
[Annotator "TA"]
[PlyCount "74"]
[EventDate "2024.03.27"]
[EventType "swiss"]
[EventCountry "ESP"]
[SourceTitle "playchess.com"]
[Source "ChessBase"]
[SourceQuality "1"]
[TimeControl "5400+30"]

{[%evp 9,74,21,17,10,12,12,23,-7,2,0,0,-2,0,0,-1,-1,-6,-7,49,-1,0,0,-13,-9,-5,-16,-18,-25,-36,-25,-3,-9,-4,-20,-20,-62,-33,-37,-34,-34,-27,-118,-114,-129,-121,-128,-120,-166,-155,-233,-216,-468,-451,-581,-574,-1199,-1275,-1171,-1054,-933,-745,-693,-647,-1477,-1442,-1492,-1452]} 1. e4 {[%emt 0:00:30]} c5 {[%emt 0:00:40]} 2. Nc3 {[%emt 0:00:00]} Nc6 {[%emt 0:00:52]} 3. Bb5 {[%emt 0:00:03]} Nd4 {[%emt 0:00:09]} 4. Nf3 {[%emt 0:00:16]} a6 {[%emt 0:00:21]} 5. Bd3 {[%emt 0:00:16]} g6 {[%emt 0:00:38]} 6. O-O {[%emt 0:00:59]} Bg7 {[%emt 0:00:05]} 7. Re1 {[%emt 0:02:11]} d6 {[%emt 0:04:49]} 8. h3 {[%emt 0:02:49] White has an edge.} Nc6 {[%emt 0:01:34]} 9. a3 {[%emt 0:07:19]} e6 {[%emt 0:05:00]} 10. Rb1 {[%emt 0:01:55]} Nge7 {[%emt 0:01:53]} 11. b4 {[%emt 0:01:44]} b5 {[%emt 0:00:10]} 12. bxc5 {[%emt 0:03:45]} dxc5 {[%emt 0:01:30]} 13. e5 {[%emt 0:01:59]} c4 {[%emt 0:06:34]} ({Black should try} 13... O-O $11) 14. Bf1 {[%emt 0:02:04]} (14. Be4 $14) 14... Nd5 $1 $11 {[%emt 0:05:34]} 15. Bb2 {[%emt 0:04:27]} Nxc3 {[%emt 0:01:43]} 16. Bxc3 {[%emt 0:00:11][%cal Oa3a4]} O-O {[%emt 0:01:03]} 17. d3 {[%emt 0:16:42]} cxd3 {[%emt 0:03:00]} 18. Bxd3 {[%emt 0:00:54]} Qc7 {[%emt 0:03:36]} 19. h4 {[%emt 0:08:56]} Bb7 {[%emt 0:04:08]} 20. h5 {[%emt 0:02:49]} Rac8 {[%emt 0:02:16][%cal Oc6e5]} 21. Qe2 {[%emt 0:02:46]} (21. a4 {with more complications.} bxa4 22. Ng5 Nxe5 23. Bxe5 Bxe5 24. Qg4) 21... Rfd8 {[%emt 0:05:53]} 22. Be4 {[%emt 0:10:04][%cal Oa3a4]} Rd7 {[%emt 0:05:53]} 23. Red1 {[%emt 0:10:29]} Rxd1+ {[%emt 0:13:58]} 24. Rxd1 {[%emt 0:00:48]} Ne7 {[%emt 0:00:54]} 25. Bxb7 {[%emt 0:10:15]} (25. Ba5 $11 {keeps the balance.} Qxa5 26. Bxb7) 25... Qxb7 $17 {[%emt 0:00:05]} 26. Bb4 {[%emt 0:03:16] [#]} Nd5 $1 {[%emt 0:01:15]} 27. Qe4 {[%emt 0:01:42]} Qc7 {[%emt 0:03:32]} (27... gxh5 28. Ng5 f5 29. exf6 Bxf6 30. Qxe6+ Kh8 31. Rxd5 (31. Qxd5 Qxd5 32. Rxd5 Rxc2 $18) (31. Qxd5 Qxd5 32. Rxd5 Rxc2 $18)) 28. hxg6 {[%emt 0:01:17]} (28. c3 $17) 28... hxg6 $19 {[%emt 0:00:31]} (28... Qxc2 29. gxh7+ (29. gxf7+ Kxf7 30. Ng5+ Kg8 $16) 29... Kh8 30. Qxc2 Rxc2 31. Ng5 $11) 29. Qh4 {[%emt 0:03:12]} (29. Rd2 $17 {was worth a try.}) 29... Qxc2 {[%emt 0:02:03]} 30. Rxd5 {[%emt 0:00:18] [#]} (30. Ra1) 30... exd5 {[%emt 0:00:29] Black is clearly winning.} 31. Kh2 {[%emt 0:01:31]} Qe4 {[%emt 0:02:21]} 32. Qe7 {[%emt 0:00:09]} Qf4+ {[%emt 0:00:54]} 33. Kh3 {[%emt 0:00:18]} Bf8 {[%emt 0:00:40]} 34. Qd7 {[%emt 0:00:53]} Qf5+ {[%emt 0:00:06]} 35. Qxf5 {[%emt 0:00:11]} gxf5 {[%emt 0:00:04]} 36. Nd4 {[%emt 0:00:39]} Bxb4 {[%emt 0:00:24]} 37. axb4 {[%emt 0:00:13]} Rc4 {[%emt 0:00:06][%csl LRb4,LRd4] Weighted Error Value: White=0.71/Black=0.18 (very precise) .  Mistake:       	White=5     	Black=1      Inaccurate:     	White=3     	Black=1      OK:         	White=6     	Black=11     Best:        	---       	Black=2      Strong:       	---       	Black=2} 0-1